bitfinex/quotes_SOLUSD_20250219
["timestamp","ask_amount","ask_price","bid_price","bid_amount"]
[1739971146044,82.7,172.78,172.74,18.09028649]
[1739971146448,82.7,172.78,172.7,6.1092]
[1739971146449,13.41184853,172.77,172.72,18.09028649]
[1739971147062,31.50213502,172.77,172.72,18.09028649]
[1739971147568,31.50213502,172.77,172.71,23.88028649]
[1739971148152,18.09028649,172.76,172.7,24.19948649]
[1739971148480,13.41184853,172.74,172.7,6.1092]
[1739971148680,82.7,172.74,172.7,29.98968649]
[1739971148980,82.7,172.74,172.72,18.09028649]
[1739971149657,82.7,172.74,172.73,5.7893]
[1739971150556,13.41184853,172.78,172.73,25.42378649]
[1739971150769,82.7,172.79,172.75,18.09028649]
[1739971150961,82.7,172.79,172.76,18.09028649]
[1739971151257,82.7,172.79,172.73,7.3335]
[1739971151258,82.7,172.79,172.75,18.09028649]
[1739971152280,100.79028649,172.81,172.75,18.09028649]
[1739971152467,100.79028649,172.81,172.75,23.87868649]
[1739971153068,18.09028649,172.8,172.74,23.87918649]
[1739971153267,18.09028649,172.8,172.74,5.7889]
[1739971153653,18.09028649,172.79,172.74,5.7889]
[1739971153856,18.09028649,172.78,172.73,1.5442]
[1739971154883,18.09028649,172.78,172.73,7.3335]
[1739971155057,13.41184853,172.78,172.73,25.42378649]
[1739971156080,31.50213502,172.8,172.74,18.09028649]
[1739971156260,13.41184853,172.8,172.75,18.09028649]
[1739971156467,82.7,172.81,172.77,18.09028649]
[1739971156668,82.7,172.81,172.76,18.09028649]
[1739971156892,100.79028649,172.81,172.75,18.09028649]
[1739971157278,82.7,172.81,172.76,18.09028649]
[1739971158097,18.09028649,172.79,172.73,25.42378649]
[1739971158970,114.20213502,172.8,172.74,23.87908649]
[1739971159877,96.11184853,172.8,172.75,18.09028649]
[1739971160293,82.7,172.8,172.75,18.09028649]
[1739971160477,82.7,172.8,172.76,18.09028649]
[1739971160796,82.7,172.8,172.77,0.063]
[1739971160996,100.79028649,172.82,172.77,0.063]
[1739971161586,106.57658649,172.82,172.77,0.063]
[1739971162105,18.09028649,172.79,172.77,0.063]
[1739971162299,31.50213502,172.78,172.77,0.063]
[1739971163280,5.7869,172.81,172.77,0.063]
[1739971163601,31.50213502,172.78,172.77,0.063]
[1739971164501,13.41184853,172.78,172.77,0.063]
[1739971164799,5.7869,172.81,172.77,0.063]
[1739971164800,18.09028649,172.81,172.77,0.063]
[1739971164990,82.7,172.81,172.77,18.15328649]
[1739971165184,82.7,172.81,172.78,5.7877]
[1739971166207,82.7,172.81,172.78,23.87798649]
[1739971166381,82.7,172.81,172.8,18.09028649]
[1739971167188,82.7,172.81,172.8,23.87728649]
[1739971167778,96.11184853,172.86,172.8,23.87728649]
[1739971168102,96.11184853,172.86,172.82,18.09028649]
[1739971168407,82.7,172.86,172.84,18.09028649]
[1739971168573,0.03,172.87,172.84,18.09028649]
[1739971169200,0.03,172.87,172.84,1.506]
[1739971175219,0.03,172.87,172.86,18.09028649]
[1739971175403,0.03,172.87,172.86,24.73578649]
[1739971176810,0.03,172.87,172.86,30.52078649]
[1739971180325,0.03,172.87,172.86,33.39771107]
[1739971181817,0.03,172.87,172.85,18.09028649]
[1739971182021,0.03,172.87,172.85,5.7853]
[1739971182321,0.03,172.87,172.85,23.87558649]
[1739971183225,0.03,172.87,172.85,5.7853]
[1739971183392,0.03,172.87,172.84,1.506]
[1739971183597,0.03,172.87,172.8,80.9]
[1739971183598,18.09028649,172.86,172.8,18.09028649]
[1739971184004,100.82028649,172.87,172.81,18.09028649]
[1739971184220,100.82028649,172.87,172.82,38.09028649]
[1739971184517,100.82028649,172.87,172.83,5.786]
[1739971185322,100.82028649,172.87,172.84,0.063]
[1739971188031,82.73,172.87,172.84,0.063]
[1739971194752,88.5148,172.87,172.84,0.063]
[1739971194921,18.09028649,172.86,172.84,0.063]
[1739971196240,100.79028649,172.86,172.84,0.063]
[1739971196655,11.59494903,172.85,172.84,0.063]
[1739971197329,94.29494903,172.86,172.84,0.063]
[1739971197754,82.7,172.86,172.84,0.063]
[1739971201347,94.29494903,172.86,172.84,0.063]
[1739971202153,25.00679756,172.85,172.84,0.063]
[1739971202553,27.57279756,172.85,172.84,0.063]
[1739971202931,26.57279756,172.85,172.84,0.063]
[1739971204349,33.35809756,172.85,172.84,0.063]
[1739971204865,26.57279756,172.85,172.84,0.063]
[1739971205052,13.41184853,172.85,172.84,0.063]
[1739971205365,0.03,172.87,172.84,11.65794903]
[1739971206358,0.03,172.87,172.86,11.59494903]
[1739971206737,0.03,172.87,172.86,18.09625276]
[1739971208344,0.03,172.87,172.86,23.88125276]
[1739971209547,0.03,172.87,172.86,104.78125276]
[1739971210465,0.03,172.94,172.93,18.09625276]
[1739971211162,0.03,172.94,172.93,98.99625276]
[1739971212562,0.03,172.94,172.93,104.77885276]
[1739971216159,0.03,172.94,172.93,37.29070129]
[1739971217376,1.0,173.0,172.97,20.0]
[1739971217576,1.0,173.0,172.99,18.09625276]
[1739971218357,0.03,173.04,173.02,20.0]
[1739971218557,0.03,173.04,173.03,18.09625276]
[1739971219153,0.03,173.04,173.03,23.87555276]
[1739971221376,0.03,173.04,173.03,25.49155276]
[1739971222688,0.03,173.04,173.03,106.39155276]
[1739971222892,0.03,173.04,173.03,25.49155276]
[1739971223073,0.03,173.04,173.0,18.09625276]
[1739971223274,18.12625276,173.04,172.98,104.77715276]
[1739971223464,96.11184853,173.03,172.95,1.5468]
[1739971223658,100.79625276,173.03,172.97,18.09625276]
[1739971223969,82.7,173.03,172.98,18.09625276]
[1739971224181,100.79625276,173.03,172.98,20.0]
[1739971224507,18.09625276,173.02,172.96,18.09625276]
[1739971224800,82.7,173.03,172.98,20.0]
[1739971224801,18.09625276,173.0,172.98,20.0]
[1739971224984,18.09625276,172.99,172.93,23.94165276]
[1739971225404,100.79625276,173.0,172.96,20.0]
[1739971225572,100.79625276,173.0,172.93,5.8454]
[1739971225573,18.09625276,172.97,172.93,0.063]
[1739971225968,18.09625276,172.98,172.93,0.063]
[1739971226476,114.20810129,172.99,172.93,18.15925276]
[1739971226676,82.7,172.99,172.95,18.09625276]
[1739971227371,82.7,172.99,172.94,23.87835276]
[1739971228302,82.7,172.99,172.93,0.063]
[1739971228303,31.50810129,172.98,172.93,0.063]
[1739971228608,82.7,172.99,172.94,18.09625276]
[1739971230776,13.41184853,172.98,172.93,18.15925276]
[1739971231088,100.79625276,172.97,172.93,0.063]
[1739971231292,18.09625276,172.96,172.93,20.063]
[1739971231487,82.7,172.97,172.93,38.15925276]
[1739971231889,82.7,172.97,172.93,0.063]
[1739971232219,100.79625276,172.97,172.93,0.063]
[1739971232986,18.09625276,172.95,172.93,0.063]
[1739971233401,114.20810129,172.96,172.93,0.063]
[1739971234201,96.11184853,172.96,172.93,0.063]
[1739971234707,114.20810129,172.96,172.93,0.063]
[1739971234908,31.50810129,172.94,172.93,0.063]
[1739971235585,33.50810129,172.94,172.84,0.063]
[1739971235788,18.09625276,172.89,172.84,0.063]
[1739971235989,18.09625276,172.88,172.84,0.063]
[1739971237513,18.09625276,172.89,172.84,0.063]
[1739971237720,13.41184853,172.88,172.84,0.063]
[1739971237905,31.50810129,172.88,172.84,0.063]
[1739971238498,37.29240129,172.88,172.84,0.063]
[1739971238813,31.50810129,172.88,172.84,0.063]
[1739971240531,82.7,172.87,172.84,0.063]
[1739971243908,82.7,172.87,172.84,18.15925276]
[1739971244228,82.7,172.87,172.85,5.7853]
[1739971244706,82.7,172.87,172.84,0.063]
[1739971245428,82.7,172.87,172.84,18.15925276]
[1739971245631,82.7,172.87,172.86,18.09625276]
[1739971246332,18.09625276,172.92,172.86,18.09625276]
[1739971246716,96.11184853,172.93,172.87,18.09625276]
[1739971246919,114.20810129,172.93,172.87,18.09625276]
[1739971247439,96.11184853,172.93,172.88,18.09625276]
[1739971248435,82.7,172.93,172.89,18.09625276]
[1739971248825,13.41184853,172.92,172.87,18.09625276]
[1739971249523,31.50810129,172.92,172.86,18.09625276]
[1739971249844,31.50810129,172.92,172.87,18.09625276]
[1739971249845,13.41184853,172.92,172.87,18.09625276]
[1739971250362,13.41184853,172.92,172.88,5.7843]
[1739971250557,13.41184853,172.92,172.87,18.09625276]
[1739971250839,13.41184853,172.92,172.87,23.88075276]
[1739971252942,13.41184853,172.92,172.87,5.7845]
[1739971254054,13.41184853,172.92,172.87,23.88075276]
[1739971254750,13.41184853,172.92,172.88,18.09625276]
[1739971254949,82.7,172.93,172.89,18.09625276]
[1739971255249,82.7,172.93,172.9,18.09625276]
[1739971256020,82.7,172.93,172.88,18.09625276]
[1739971256540,82.7,172.93,172.88,38.09625276]
[1739971256753,82.73,172.93,172.88,38.09625276]
[1739971257230,31.50810129,172.92,172.86,18.15925276]
[1739971257426,13.41184853,172.92,172.87,18.09625276]
[1739971257631,13.41184853,172.92,172.88,18.09625276]
[1739971258245,13.41184853,172.92,172.89,5.784]
[1739971258731,13.41184853,172.92,172.88,18.09625276]
[1739971259058,13.41184853,172.92,172.88,23.88055276]
[1739971259438,13.41184853,172.92,172.87,23.88075276]
[1739971259848,13.41184853,172.92,172.87,18.09625276]
[1739971260032,13.41184853,172.9,172.86,5.8479]
[1739971260232,31.50810129,172.9,172.86,0.063]
[1739971260661,18.09625276,172.87,172.86,0.063]
[1739971260957,166.00810129,172.87,172.86,0.063]
[1739971262464,171.79270129,172.87,172.86,0.063]
[1739971267067,166.00810129,172.87,172.86,0.063]
[1739971267248,171.79270129,172.87,172.86,0.063]
[1739971268374,172.79270129,172.87,172.86,0.063]
[1739971270275,171.79270129,172.87,172.86,0.063]
[1739971272385,166.00810129,172.87,172.86,0.063]
[1739971272880,171.79270129,172.87,172.86,0.063]
[1739971274476,173.79270129,172.87,172.86,0.063]
[1739971274845,1.0,172.85,172.84,0.063]
[1739971275050,35.11210129,172.85,172.84,0.063]
[1739971275374,13.41184853,172.8,172.77,0.063]
[1739971275546,31.50810129,172.78,172.77,0.063]
[1739971276350,18.09625276,172.79,172.77,0.063]
[1739971276550,18.09625276,172.8,172.77,0.063]
[1739971278976,100.79625276,172.79,172.77,0.063]
[1739971279284,18.09625276,172.78,172.77,0.063]
[1739971279692,31.50810129,172.78,172.77,0.063]
[1739971282285,13.41184853,172.78,172.77,0.063]
[1739971283070,152.59625276,172.8,172.77,0.063]
[1739971283274,18.09625276,172.82,172.77,0.063]
[1739971283769,13.41184853,172.81,172.77,0.063]
[1739971283973,82.7,172.83,172.78,18.09625276]
[1739971284172,82.7,172.83,172.79,18.09625276]
[1739971284794,82.7,172.83,172.78,18.09625276]
[1739971285007,13.41184853,172.82,172.77,26.03605276]
[1739971285302,18.09625276,172.81,172.77,0.063]
[1739971285972,18.09625276,172.8,172.77,0.063]
[1739971286190,18.09625276,172.78,172.77,0.063]
[1739971286411,31.50810129,172.78,172.77,0.063]
[1739971287804,18.09625276,172.79,172.77,0.063]
[1739971288008,82.7,172.8,172.77,0.063]
[1739971289778,82.7,172.83,172.78,18.09625276]
[1739971289982,82.7,172.83,172.8,18.09625276]
[1739971290178,0.03,172.84,172.81,18.09625276]
[1739971290807,0.03,172.84,172.82,18.09625276]
[1739971291910,0.03,172.84,172.83,18.09625276]
[1739971292111,0.03,172.84,172.82,23.88225276]
[1739971293314,0.03,172.84,172.81,6.4851]
[1739971293896,0.03,172.84,172.81,12.2716]
[1739971294102,0.03,172.84,172.82,18.09625276]
[1739971294410,0.03,172.84,172.83,18.09625276]
[1739971295425,0.03,172.84,172.83,23.88225276]
[1739971295804,0.03,172.84,172.83,18.09625276]
[1739971295988,0.03,172.84,172.82,5.7862]
[1739971296402,0.03,172.84,172.81,80.9]
[1739971296789,0.03,172.84,172.81,86.6866]
[1739971296986,0.03,172.84,172.8,7.3907]
[1739971297225,18.09625276,172.81,172.77,6.3118]
[1739971297396,18.09625276,172.81,172.77,5.851]
[1739971298013,18.09625276,172.8,172.77,0.063]
[1739971298197,18.09625276,172.79,172.77,0.063]
[1739971298889,31.50810129,172.8,172.77,0.063]
[1739971299309,18.09625276,172.79,172.77,0.063]
[1739971301136,13.41184853,172.8,172.77,0.063]
[1739971301305,82.7,172.81,172.77,0.063]
[1739971301512,100.79625276,172.81,172.77,0.063]
[1739971301832,18.09625276,172.8,172.77,0.063]
[1739971302010,18.09625276,172.78,172.77,0.063]
[1739971302825,31.50810129,172.78,172.77,0.063]
[1739971309740,13.41184853,172.78,172.77,0.063]
[1739971313320,37.29580129,172.78,172.77,0.063]
[1739971313731,31.50810129,172.78,172.77,0.063]
[1739971314018,134.5,172.8,172.77,0.063]
[1739971314531,114.20810129,172.83,172.77,18.15925276]
[1739971315425,82.7,172.83,172.8,18.09625276]
[1739971315628,0.03,172.84,172.81,18.09625276]
[1739971315837,0.03,172.84,172.82,18.09625276]
[1739971316313,0.03,172.84,172.83,18.09625276]
[1739971316516,0.03,172.84,172.81,18.09625276]
[1739971317241,0.03,172.84,172.83,18.09625276]
[1739971317440,0.03,172.84,172.83,23.88225276]
[1739971317619,0.03,172.84,172.83,25.48775276]
[1739971320633,0.03,172.84,172.83,7.3915]
[1739971320840,0.03,172.84,172.83,5.786]
[1739971321147,0.03,172.84,172.78,85.37632956]
[1739971321458,0.03,172.84,172.79,23.88355276]
[1739971321626,18.09625276,172.83,172.79,5.7873]
[1739971321836,18.09625276,172.81,172.78,5.7876]
[1739971322135,18.09625276,172.81,172.77,5.8509]
[1739971322446,100.79625276,172.82,172.77,5.8509]
[1739971322661,100.79625276,172.82,172.77,23.94715276]
[1739971323144,100.79625276,172.82,172.77,5.8509]
[1739971324981,18.09625276,172.81,172.77,5.8509]
[1739971325183,31.50810129,172.78,172.77,0.063]
[1739971326468,39.29580129,172.78,172.77,0.063]
[1739971327190,37.29580129,172.78,172.77,0.063]
[1739971327596,39.29580129,172.78,172.77,0.063]
[1739971327804,2.0,172.76,172.75,0.063]
[1739971327960,33.50810129,172.76,172.75,0.063]
[1739971328476,37.29640129,172.76,172.75,0.063]
[1739971328871,38.29640129,172.76,172.75,0.063]
[1739971329072,39.29640129,172.76,172.75,0.063]
[1739971329284,41.66806534,172.76,172.75,0.063]
[1739971330325,21.0,172.72,172.7,0.063]
[1739971330478,266.80435405,172.71,172.7,0.063]
[1739971330805,248.70810129,172.71,172.7,0.063]
[1739971333182,230.61184853,172.71,172.7,0.063]
[1739971334192,82.7,172.71,172.7,0.063]
[1739971335712,13.41184853,172.73,172.7,0.063]
[1739971336511,82.7,172.74,172.7,0.063]
[1739971336821,82.7,172.74,172.7,18.15925276]
[1739971337012,82.7,172.74,172.72,18.09625276]
[1739971337213,82.7,172.77,172.73,18.09625276]
[1739971337616,82.7,172.77,172.75,18.09625276]
[1739971338127,82.7,172.8,172.76,18.09625276]
[1739971338310,100.79625276,172.83,172.77,18.09625276]
[1739971338512,18.09625276,172.81,172.75,24.46685276]
[1739971339206,31.50810129,172.8,172.75,6.3706]
[1739971339408,18.09625276,172.77,172.72,5.7896]
[1739971340326,0.03,172.75,172.72,5.7896]
[1739971340997,0.03,172.75,172.72,23.88585276]
[1739971341198,0.03,172.75,172.74,18.09625276]
[1739971341401,0.03,172.75,172.73,18.09625276]
[1739971341704,0.03,172.75,172.72,5.7896]
[1739971341899,82.7,172.83,172.74,18.09625276]
[1739971342104,0.03,172.84,172.81,18.09625276]
[1739971342322,0.03,172.84,172.83,18.09625276]
[1739971343206,0.03,172.84,172.83,23.88225276]
[1739971344734,0.03,172.84,172.83,34.75134745]
[1739971345634,0.03,172.93,172.84,1.626]
[1739971345933,0.03,172.93,172.88,28.96534745]
[1739971346232,13.44184853,172.93,172.88,28.96534745]
[1739971346812,13.44184853,172.93,172.89,28.96534745]
[1739971347006,0.03,172.93,172.91,28.96534745]
[1739971347813,0.03,172.93,172.91,34.74854745]
[1739971348026,0.03,172.93,172.92,28.96534745]
[1739971348430,0.03,172.93,172.9,28.96534745]
[1739971348639,0.03,172.93,172.91,28.96534745]
[1739971348836,0.03,172.93,172.92,28.96534745]
[1739971349735,0.03,172.93,172.92,34.74834745]
[1739971352730,0.03,172.93,172.92,115.64834745]
[1739971352930,0.03,172.93,172.92,117.16834745]
[1739971353126,0.03,172.93,172.92,36.26834745]
[1739971354229,0.03,172.93,172.9,34.74894745]
[1739971354651,0.03,172.93,172.91,28.96534745]
[1739971355585,0.03,172.93,172.92,28.96534745]
[1739971357723,0.03,172.93,172.92,34.74834745]
[1739971364669,0.03,172.93,172.92,23.86787433]
[1739971367450,0.03,172.93,172.92,18.08487433]
[1739971369762,18.11487433,172.93,172.87,23.86947433]
[1739971369943,18.11487433,172.93,172.86,18.08487433]
[1739971369944,31.49672286,172.92,172.86,18.08487433]
[1739971370256,13.41184853,172.9,172.85,18.08487433]
[1739971370583,31.49672286,172.9,172.84,18.14787433]
[1739971370766,18.08487433,172.88,172.84,0.063]
[1739971370969,100.78487433,172.88,172.84,0.063]
[1739971371772,18.08487433,172.86,172.84,0.063]
[1739971372272,31.49672286,172.87,172.84,0.063]
[1739971372784,37.28142286,172.87,172.84,0.063]
[1739971373849,13.41184853,172.85,172.84,0.063]
[1739971376871,17.79184853,172.85,172.84,0.063]
[1739971377068,100.49184853,172.85,172.84,0.063]
[1739971379490,118.57672286,172.85,172.84,0.063]
[1739971381397,124.36202286,172.85,172.84,0.063]
[1739971382710,42.66202286,172.85,172.84,0.063]
[1739971385401,38.28202286,172.85,172.84,0.063]
[1739971385621,4.38,172.85,172.84,0.063]
[1739971385912,35.87672286,172.85,172.84,0.063]
[1739971386880,41.66202286,172.85,172.84,0.063]
[1739971388213,41.69202286,172.85,172.84,0.063]
[1739971388716,13.44184853,172.85,172.84,0.063]
[1739971388920,4.43,172.85,172.84,0.063]
[1739971390389,44.28592286,172.85,172.71,14.4745]
[1739971390710,18.08487433,172.83,172.77,18.08487433]
[1739971390905,82.7,172.82,172.79,18.08487433]
[1739971391122,82.7,172.82,172.8,18.08487433]
[1739971391310,87.13,172.85,172.81,18.08487433]
[1739971391509,87.13,172.85,172.82,18.08487433]
[1739971392224,13.41184853,172.84,172.78,18.08487433]
[1739971392433,13.41184853,172.8,172.75,18.08487433]
[1739971392587,4.44,172.79,172.75,18.08487433]
[1739971394292,22.52487433,172.79,172.74,1.5496]
[1739971394497,28.31247433,172.79,172.73,18.08487433]
[1739971394711,31.49672286,172.78,172.72,80.9]
[1739971394897,18.08487433,172.76,172.7,25.90027433]
[1739971395310,13.41184853,172.76,172.71,18.08487433]
[1739971395823,13.41184853,172.76,172.72,18.08487433]
[1739971400003,82.7,172.8,172.75,18.08487433]
[1739971400207,82.7,172.8,172.77,18.08487433]
[1739971400403,82.7,172.8,172.75,18.08487433]
[1739971400620,13.41184853,172.79,172.74,18.08487433]
[1739971400801,13.41184853,172.76,172.72,0.063]
[1739971400999,4.46,172.75,172.72,0.063]
[1739971401231,4.46,172.75,172.72,18.14787433]
[1739971401433,4.46,172.75,172.74,18.08487433]
[1739971402339,4.46,172.75,172.74,23.87387433]
[1739971402625,4.46,172.75,172.73,18.08487433]
[1739971402941,4.46,172.75,172.72,0.063]
[1739971406714,13.41184853,172.74,172.72,0.063]
[1739971406935,31.49672286,172.74,172.72,0.063]
[1739971407122,114.19672286,172.73,172.72,0.063]
[1739971408346,119.98602286,172.73,172.72,0.063]
[1739971409712,114.19672286,172.73,172.72,0.063]
[1739971410111,96.11184853,172.73,172.72,0.063]
[1739971410538,114.19672286,172.73,172.72,0.063]
[1739971410923,100.78487433,172.73,172.72,0.063]
[1739971411451,119.98602286,172.73,172.72,0.063]
[1739971415359,37.28602286,172.73,172.72,0.063]
[1739971415859,38.28602286,172.73,172.72,0.063]
[1739971416165,37.28602286,172.73,172.72,0.063]
[1739971417066,13.41184853,172.73,172.72,0.063]
[1739971418465,37.28602286,172.73,172.72,0.063]
[1739971421261,31.49672286,172.73,172.72,0.063]
[1739971421461,4.42,172.74,172.72,0.063]
[1739971421679,18.08487433,172.73,172.72,0.063]
[1739971422177,31.49672286,172.73,172.72,0.063]
[1739971423378,37.28602286,172.73,172.72,0.063]
[1739971425469,31.49672286,172.73,172.72,0.063]
[1739971425780,28.29407433,172.74,172.72,0.063]
[1739971426354,17.83184853,172.73,172.72,0.063]
[1739971427557,100.53184853,172.73,172.72,0.063]
[1739971428784,100.51184853,172.73,172.72,0.063]
[1739971429484,87.1,172.73,172.72,0.063]
[1739971429974,82.7,172.73,172.72,0.063]
[1739971431565,13.41184853,172.76,172.72,0.063]
[1739971431883,4.4,172.75,172.72,0.063]
[1739971432387,31.49672286,172.74,172.72,0.063]
[1739971432566,31.49672286,172.73,172.72,0.063]
[1739971433781,37.28602286,172.73,172.72,0.063]
[1739971434586,19.20114853,172.73,172.72,0.063]
[1739971434785,37.28602286,172.73,172.72,0.063]
[1739971437289,82.7,172.74,172.72,18.14787433]
[1739971437491,82.7,172.74,172.72,0.063]
[1739971437696,31.49672286,172.73,172.72,0.063]
[1739971438369,13.41184853,172.73,172.72,0.063]
[1739971448580,82.7,172.74,172.72,0.063]
[1739971448782,82.7,172.74,172.72,11.67134784]
[1739971449606,13.41184853,172.77,172.73,11.60834784]
[1739971449811,4.38,172.76,172.74,11.60834784]
[1739971450321,13.41184853,172.75,172.72,0.063]
[1739971450485,11.60834784,172.73,172.72,0.063]
[1739971451908,17.39764784,172.73,172.72,0.063]
[1739971452113,30.80949637,172.73,172.72,0.063]
[1739971452306,230.61184853,172.72,172.7,0.063]
[1739971452514,45.02019637,172.7,172.69,0.063]
[1739971452687,49.42019637,172.7,172.69,0.063]
[1739971454219,55.21049637,172.7,172.69,0.063]
[1739971454595,61.75800576,172.7,172.69,0.063]
[1739971455735,62.75800576,172.7,172.68,0.063]
[1739971455897,35.10930576,172.69,172.68,0.063]
[1739971457021,34.10930576,172.69,172.68,0.063]
[1739971457231,40.90000576,172.69,172.68,0.063]
[1739971460527,39.90000576,172.69,172.68,0.063]
[1739971460739,40.90000576,172.69,172.68,0.063]
[1739971462634,34.41184853,172.67,172.66,0.063]
[1739971462836,13.41184853,172.65,172.63,0.063]
[1739971463133,35.94770576,172.64,172.63,0.063]
[1739971463730,41.74010576,172.64,172.63,0.063]
[1739971465718,33.41184853,172.6,172.55,0.063]
[1739971466041,33.41184853,172.56,172.55,0.063]
[1739971466244,55.94770576,172.56,172.55,0.063]
[1739971467318,61.74270576,172.56,172.55,0.063]
[1739971468329,41.74270576,172.56,172.55,0.063]
[1739971473047,35.94770576,172.56,172.55,0.063]
[1739971473250,41.74270576,172.56,172.55,0.063]
[1739971474348,17.79184853,172.56,172.55,0.063]
[1739971475459,18.15585723,172.58,172.55,0.063]
[1739971475648,82.7,172.59,172.56,18.15585723]
[1739971475847,82.7,172.59,172.58,18.15585723]
[1739971478955,82.7,172.59,172.58,23.95025723]
[1739971479154,82.7,172.65,172.58,23.95025723]
[1739971479340,100.85585723,172.65,172.59,18.15585723]
[1739971479663,31.56770576,172.64,172.58,18.15585723]
[1739971479837,13.41184853,172.64,172.59,18.15585723]
[1739971480044,82.7,172.65,172.61,18.15585723]
[1739971480360,82.7,172.65,172.6,18.15585723]
[1739971480561,100.85585723,172.65,172.59,18.15585723]
[1739971481545,82.7,172.65,172.6,18.15585723]
[1739971482052,82.7,172.65,172.61,18.15585723]
[1739971482256,82.7,172.67,172.62,18.15585723]
[1739971482451,4.36,172.68,172.63,18.15585723]
[1739971482658,0.063,172.64,172.63,18.15585723]
[1739971483370,0.063,172.64,172.63,25.51825723]
[1739971484452,0.063,172.64,172.63,19.72555723]
[1739971485040,0.063,172.64,172.63,25.51825723]
[1739971490261,0.063,172.69,172.63,121.90005541]
[1739971490564,0.063,172.69,172.68,18.15585723]
[1739971492291,0.063,172.69,172.68,23.94685723]
[1739971493066,0.063,172.69,172.67,18.15585723]
[1739971493409,0.063,172.69,172.64,18.15585723]
[1739971493561,0.063,172.69,172.65,18.15585723]
[1739971494174,0.063,172.69,172.66,18.15585723]
[1739971494379,0.063,172.69,172.65,18.15585723]
[1739971496904,0.063,172.69,172.65,23.94775723]
[1739971497497,0.063,172.69,172.65,18.15585723]
[1739971497669,22.57885723,172.69,172.63,25.51815723]
[1739971498795,105.27885723,172.69,172.63,25.51815723]
[1739971499596,87.123,172.69,172.64,18.15585723]
[1739971499992,105.27885723,172.69,172.63,25.51815723]
[1739971500201,111.06965723,172.69,172.63,19.72555723]
[1739971500382,105.27885723,172.69,172.63,18.15585723]
[1739971500796,105.25885723,172.69,172.63,23.94845723]
[1739971501992,87.103,172.69,172.64,18.15585723]
[1739971502496,105.25885723,172.69,172.63,23.94845723]
[1739971504287,87.103,172.69,172.64,18.15585723]
[1739971504896,87.103,172.69,172.66,18.15585723]
[1739971505108,87.103,172.69,172.65,18.15585723]
[1739971505909,82.763,172.69,172.65,18.15585723]
[1739971506416,82.763,172.69,172.66,5.7917]
[1739971507785,0.063,172.69,172.65,18.15585723]
[1739971508099,0.063,172.69,172.65,23.94775723]
[1739971508721,0.063,172.69,172.66,11.6135159]
[1739971508888,0.063,172.69,172.65,17.4054159]
[1739971511007,0.063,172.69,172.65,5.7919]
[1739971511215,0.063,172.69,172.68,11.6135159]
[1739971515349,0.063,172.69,172.67,11.6135159]
[1739971515523,11.6765159,172.69,172.65,5.7918]
[1739971516038,11.6765159,172.69,172.64,5.8223]
[1739971516541,11.6765159,172.69,172.64,0.03]
[1739971516542,11.6135159,172.67,172.64,0.03]
[1739971517835,15.9335159,172.68,172.64,0.03]
[1739971518464,4.32,172.68,172.64,0.03]
[1739971518944,15.9335159,172.68,172.64,0.03]
[1739971519141,11.6135159,172.67,172.64,0.03]
[1739971519364,15.9335159,172.68,172.64,0.03]
[1739971519544,4.32,172.68,172.64,0.03]
[1739971520344,15.9335159,172.68,172.64,0.03]
[1739971523434,11.6135159,172.67,172.64,0.03]
[1739971523739,11.6135159,172.66,172.64,0.03]
[1739971524453,11.6135159,172.67,172.64,0.03]
[1739971525757,82.7,172.68,172.64,0.03]
[1739971525941,82.7,172.68,172.67,11.6135159]
[1739971526560,82.7,172.68,172.67,17.4048159]